Workbook

Sheet ダッシュボード
N1: =BudgetName&" の収支" -> 青木家 2012 年 の収支
A3: ='グラフ データ'!C38 -> ¥400,000
D5: 収入
A7: ='グラフ データ'!C39 -> ¥593,300
D9: 支出
A11: =-'グラフ データ'!C40 -> -¥193,300
D13: キャッシュ フロー

Sheet 予算
C1: 1 月 | D1: 2 月 | E1: 3 月 | F1: 4 月 | G1: 5 月 | H1: 6 月 | I1: 7 月 | J1: 8 月 | K1: 9 月 | L1: 10 月 | M1: 11 月 | N1: 12 月 | O1: 年 | P1: 平均
B5: 開始残高 | C5: 100,000
B6: 総収入 | C6: =SUM(tblIncome[jan]) -> 422,200 | D6: =SUM(tblIncome[feb]) -> 903,300 | E6: =SUM(tblIncome[mar]) -> 400,000 | F6: =SUM(tblIncome[apr]) -> 404,500 | G6: =SUM(tblIncome[may]) -> 900,000 | H6: =SUM(tblIncome[jun]) -> 152,500 | I6: =SUM(tblIncome[jul]) -> 150,000 | J6: =SUM(tblIncome[aug]) -> 650,000 | K6: =SUM(tblIncome[sep]) -> 400,000 | L6: =SUM(tblIncome[oct]) -> 400,000 | M6: =SUM(tblIncome[nov]) -> 900,000 | N6: =SUM(tblIncome[dec]) -> 400,000 | O6: =SUM(tblIncome[year]) -> 6,082,500 | P6: =O6/12 -> 506,875
B7: 総支出 | C7: =SUM(tblExpenseCategory_01[jan],tblExpenseCategory_02[jan],tblExpenseCategory_03[jan],tblExpenseCategory_04[jan],tblExpenseCategory_05[jan],tblExpenseCategory_06[jan],tblExpenseCategory_07[jan],tblExpenseCategory_08[jan],tblExpenseCategory_09[jan],tblExpenseCategory_10[jan],tblExpenseCategory_11[jan],tblExpenseCategory_12[jan],tblExpenseCategory_13[jan],tblExpenseCategory_14[jan],tblExpenseCategory_15[jan]) -> 793,600 | D7: =SUM(tblExpenseCategory_01[feb],tblExpenseCategory_02[feb],tblExpenseCategory_03[feb],tblExpenseCategory_04[feb],tblExpenseCategory_05[feb],tblExpenseCategory_06[feb],tblExpenseCategory_07[feb],tblExpenseCategory_08[feb],tblExpenseCategory_09[feb],tblExpenseCategory_10[feb],tblExpenseCategory_11[feb],tblExpenseCategory_12[feb],tblExpenseCategory_13[feb],tblExpenseCategory_14[feb],tblExpenseCategory_15[feb]) -> 524,300 | E7: =SUM(tblExpenseCategory_01[mar],tblExpenseCategory_02[mar],tblExpenseCategory_03[mar],tblExpenseCategory_04[mar],tblExpenseCategory_05[mar],tblExpenseCategory_06[mar],tblExpenseCategory_07[mar],tblExpenseCategory_08[mar],tblExpenseCategory_09[mar],tblExpenseCategory_10[mar],tblExpenseCategory_11[mar],tblExpenseCategory_12[mar],tblExpenseCategory_13[mar],tblExpenseCategory_14[mar],tblExpenseCategory_15[mar]) -> 593,300 | F7: =SUM(tblExpenseCategory_01[apr],tblExpenseCategory_02[apr],tblExpenseCategory_03[apr],tblExpenseCategory_04[apr],tblExpenseCategory_05[apr],tblExpenseCategory_06[apr],tblExpenseCategory_07[apr],tblExpenseCategory_08[apr],tblExpenseCategory_09[apr],tblExpenseCategory_10[apr],tblExpenseCategory_11[apr],tblExpenseCategory_12[apr],tblExpenseCategory_13[apr],tblExpenseCategory_14[apr],tblExpenseCategory_15[apr]) -> 585,800 | G7: =SUM(tblExpenseCategory_01[may],tblExpenseCategory_02[may],tblExpenseCategory_03[may],tblExpenseCategory_04[may],tblExpenseCategory_05[may],tblExpenseCategory_06[may],tblExpenseCategory_07[may],tblExpenseCategory_08[may],tblExpenseCategory_09[may],tblExpenseCategory_10[may],tblExpenseCategory_11[may],tblExpenseCategory_12[may],tblExpenseCategory_13[may],tblExpenseCategory_14[may],tblExpenseCategory_15[may]) -> 546,800 | H7: =SUM(tblExpenseCategory_01[jun],tblExpenseCategory_02[jun],tblExpenseCategory_03[jun],tblExpenseCategory_04[jun],tblExpenseCategory_05[jun],tblExpenseCategory_06[jun],tblExpenseCategory_07[jun],tblExpenseCategory_08[jun],tblExpenseCategory_09[jun],tblExpenseCategory_10[jun],tblExpenseCategory_11[jun],tblExpenseCategory_12[jun],tblExpenseCategory_13[jun],tblExpenseCategory_14[jun],tblExpenseCategory_15[jun]) -> 511,800 | I7: =SUM(tblExpenseCategory_01[jul],tblExpenseCategory_02[jul],tblExpenseCategory_03[jul],tblExpenseCategory_04[jul],tblExpenseCategory_05[jul],tblExpenseCategory_06[jul],tblExpenseCategory_07[jul],tblExpenseCategory_08[jul],tblExpenseCategory_09[jul],tblExpenseCategory_10[jul],tblExpenseCategory_11[jul],tblExpenseCategory_12[jul],tblExpenseCategory_13[jul],tblExpenseCategory_14[jul],tblExpenseCategory_15[jul]) -> 574,300 | J7: =SUM(tblExpenseCategory_01[aug],tblExpenseCategory_02[aug],tblExpenseCategory_03[aug],tblExpenseCategory_04[aug],tblExpenseCategory_05[aug],tblExpenseCategory_06[aug],tblExpenseCategory_07[aug],tblExpenseCategory_08[aug],tblExpenseCategory_09[aug],tblExpenseCategory_10[aug],tblExpenseCategory_11[aug],tblExpenseCategory_12[aug],tblExpenseCategory_13[aug],tblExpenseCategory_14[aug],tblExpenseCategory_15[aug]) -> 535,300 | K7: =SUM(tblExpenseCategory_01[sep],tblExpenseCategory_02[sep],tblExpenseCategory_03[sep],tblExpenseCategory_04[sep],tblExpenseCategory_05[sep],tblExpenseCategory_06[sep],tblExpenseCategory_07[sep],tblExpenseCategory_08[sep],tblExpenseCategory_09[sep],tblExpenseCategory_10[sep],tblExpenseCategory_11[sep],tblExpenseCategory_12[sep],tblExpenseCategory_13[sep],tblExpenseCategory_14[sep],tblExpenseCategory_15[sep]) -> 598,300 | L7: =SUM(tblExpenseCategory_01[oct],tblExpenseCategory_02[oct],tblExpenseCategory_03[oct],tblExpenseCategory_04[oct],tblExpenseCategory_05[oct],tblExpenseCategory_06[oct],tblExpenseCategory_07[oct],tblExpenseCategory_08[oct],tblExpenseCategory_09[oct],tblExpenseCategory_10[oct],tblExpenseCategory_11[oct],tblExpenseCategory_12[oct],tblExpenseCategory_13[oct],tblExpenseCategory_14[oct],tblExpenseCategory_15[oct]) -> 594,300 | M7: =SUM(tblExpenseCategory_01[nov],tblExpenseCategory_02[nov],tblExpenseCategory_03[nov],tblExpenseCategory_04[nov],tblExpenseCategory_05[nov],tblExpenseCategory_06[nov],tblExpenseCategory_07[nov],tblExpenseCategory_08[nov],tblExpenseCategory_09[nov],tblExpenseCategory_10[nov],tblExpenseCategory_11[nov],tblExpenseCategory_12[nov],tblExpenseCategory_13[nov],tblExpenseCategory_14[nov],tblExpenseCategory_15[nov]) -> 505,800 | N7: =SUM(tblExpenseCategory_01[dec],tblExpenseCategory_02[dec],tblExpenseCategory_03[dec],tblExpenseCategory_04[dec],tblExpenseCategory_05[dec],tblExpenseCategory_06[dec],tblExpenseCategory_07[dec],tblExpenseCategory_08[dec],tblExpenseCategory_09[dec],tblExpenseCategory_10[dec],tblExpenseCategory_11[dec],tblExpenseCategory_12[dec],tblExpenseCategory_13[dec],tblExpenseCategory_14[dec],tblExpenseCategory_15[dec]) -> 495,800 | O7: =SUM(tblExpenseCategory_01[year],tblExpenseCategory_02[year],tblExpenseCategory_03[year],tblExpenseCategory_04[year],tblExpenseCategory_05[year],tblExpenseCategory_06[year],tblExpenseCategory_07[year],tblExpenseCategory_08[year],tblExpenseCategory_09[year],tblExpenseCategory_10[year],tblExpenseCategory_11[year],tblExpenseCategory_12[year],tblExpenseCategory_13[year],tblExpenseCategory_14[year],tblExpenseCategory_15[year]) -> 6,859,400 | P7: =O7/12 -> 571,617
B8: 純収入 | C8: =C6-C7 -> -371,400 | D8: =D6-D7 -> 379,000 | E8: -193,300 | F8: -181,300 | G8: 353,200 | H8: -359,300 | I8: -424,300 | J8: 114,700 | K8: -198,300 | L8: -194,300 | M8: 394,200 | N8: -95,800 | O8: -776,900 | P8: =O8/12 -> -64,742
B9: 総キャッシュ フロー | C9: =C5+C6-C7 -> -271,400 | D9: =C9+D6-D7 -> 107,600 | E9: =D9+E6-E7 -> -85,700 | F9: -267,000 | G9: 86,200 | H9: -273,100 | I9: -697,400 | J9: -582,700 | K9: -781,000 | L9: -975,300 | M9: -581,100 | N9: -676,900
B12: 収入
B13: 給与/チップ | C13: 400,000 | D13: 400,000 | E13: 400,000 | F13: 400,000 | G13: 400,000 | H13: 100,000 | I13: 100,000 | J13: 100,000 | K13: 400,000 | L13: 400,000 | M13: 400,000 | N13: 400,000 | O13: =SUM(tblIncome[[#This Row],[jan]:[dec]]) -> 3,900,000 | P13: =tblIncome[[#This Row],[year]]/12 -> 325,000
B14: 金利収入 | C14: 22,200 | D14: 3,300 | F14: 4,500 | H14: 2,500 | O14: =SUM(tblIncome[[#This Row],[jan]:[dec]]) -> 32,500 | P14: =tblIncome[[#This Row],[year]]/12 -> 2,708
B15: 配当 | D15: 500,000 | G15: 500,000 | J15: 500,000 | M15: 500,000 | O15: =SUM(tblIncome[[#This Row],[jan]:[dec]]) -> 2,000,000 | P15: =tblIncome[[#This Row],[year]]/12 -> 166,667
B16: 還付/償還 | H16: 50,000 | I16: 50,000 | J16: 50,000 | O16: =SUM(tblIncome[[#This Row],[jan]:[dec]]) -> 150,000 | P16: =tblIncome[[#This Row],[year]]/12 -> 12,500
B17: その他 | O17: =SUM(tblIncome[[#This Row],[jan]:[dec]]) -> 0 | P17: =tblIncome[[#This Row],[year]]/12 -> 0
B18: 総収入 | C18: =SUM(tblIncome[jan]) -> 422,200 | D18: =SUM(tblIncome[feb]) -> 903,300 | E18: =SUM(tblIncome[mar]) -> 400,000 | F18: =SUM(tblIncome[apr]) -> 404,500 | G18: =SUM(tblIncome[may]) -> 900,000 | H18: =SUM(tblIncome[jun]) -> 152,500 | I18: =SUM(tblIncome[jul]) -> 150,000 | J18: =SUM(tblIncome[aug]) -> 650,000 | K18: =SUM(tblIncome[sep]) -> 400,000 | L18: =SUM(tblIncome[oct]) -> 400,000 | M18: =SUM(tblIncome[nov]) -> 900,000 | N18: =SUM(tblIncome[dec]) -> 400,000 | O18: =SUM(tblIncome[year]) -> 6,082,500 | P18: =tblIncome[[#Totals],[year]]/12 -> 506,875
B21: 住居
B22: 住宅ローン/家賃 | C22: 85,000 | D22: 85,000 | E22: 85,000 | F22: 85,000 | G22: 85,000 | H22: 85,000 | I22: 85,000 | J22: 85,000 | K22: 85,000 | L22: 85,000 | M22: 90,000 | N22: 90,000 | O22: =SUM(tblExpenseCategory_01[[#This Row],[jan]:[dec]]) -> 1,030,000 | P22: =tblExpenseCategory_01[[#This Row],[year]]/12 -> 85,833
B23: 電気 | C23: 20,000 | D23: 20,000 | E23: 17,500 | F23: 15,000 | G23: 15,000 | H23: 17,500 | I23: 22,500 | J23: 27,500 | K23: 20,000 | L23: 15,000 | M23: 15,000 | N23: 15,000 | O23: =SUM(tblExpenseCategory_01[[#This Row],[jan]:[dec]]) -> 220,000 | P23: =tblExpenseCategory_01[[#This Row],[year]]/12 -> 18,333
B24: 電話番号 | C24: 5,000 | D24: 5,000 | E24: 10,000 | F24: 10,000 | G24: 5,000 | H24: 5,000 | I24: 10,000 | J24: 10,000 | K24: 5,000 | L24: 5,000 | M24: 5,000 | N24: 5,000 | O24: =SUM(tblExpenseCategory_01[[#This Row],[jan]:[dec]]) -> 80,000 | P24: =tblExpenseCategory_01[[#This Row],[year]]/12 -> 6,667
B25: ケーブル テレビ/衛星放送 | C25: 6,900 | D25: 6,900 | E25: 6,900 | F25: 6,900 | G25: 6,900 | H25: 6,900 | I25: 6,900 | J25: 6,900 | K25: 6,900 | L25: 6,900 | M25: 6,900 | N25: 6,900 | O25: =SUM(tblExpenseCategory_01[[#This Row],[jan]:[dec]]) -> 82,800 | P25: =tblExpenseCategory_01[[#This Row],[year]]/12 -> 6,900
B26: インターネット | C26: 3,900 | D26: 3,900 | E26: 3,900 | F26: 3,900 | G26: 3,900 | H26: 3,900 | I26: 3,900 | J26: 3,900 | K26: 3,900 | L26: 3,900 | M26: 3,900 | N26: 3,900 | O26: =SUM(tblExpenseCategory_01[[#This Row],[jan]:[dec]]) -> 46,800 | P26: =tblExpenseCategory_01[[#This Row],[year]]/12 -> 3,900
B27: =UPPER("合計 " & B21) -> 合計 住居 | C27: =SUM(tblExpenseCategory_01[jan]) -> 120,800 | D27: =SUM(tblExpenseCategory_01[feb]) -> 120,800 | E27: =SUM(tblExpenseCategory_01[mar]) -> 123,300 | F27: =SUM(tblExpenseCategory_01[apr]) -> 120,800 | G27: =SUM(tblExpenseCategory_01[may]) -> 115,800 | H27: =SUM(tblExpenseCategory_01[jun]) -> 118,300 | I27: =SUM(tblExpenseCategory_01[jul]) -> 128,300 | J27: =SUM(tblExpenseCategory_01[aug]) -> 133,300 | K27: =SUM(tblExpenseCategory_01[sep]) -> 120,800 | L27: =SUM(tblExpenseCategory_01[oct]) -> 115,800 | M27: =SUM(tblExpenseCategory_01[nov]) -> 120,800 | N27: =SUM(tblExpenseCategory_01[dec]) -> 120,800 | O27: =SUM(tblExpenseCategory_01[year]) -> 1,459,600 | P27: =tblExpenseCategory_01[[#Totals],[year]]/12 -> 121,633
B30: 生活
B31: 食料品 | C31: 34,500 | D31: 25,000 | E31: 20,000 | F31: 40,000 | G31: 35,000 | H31: 25,000 | I31: 40,000 | J31: 35,000 | K31: 25,000 | L31: 40,000 | M31: 35,000 | N31: 25,000 | O31: =SUM(tblExpenseCategory_02[[#This Row],[jan]:[dec]]) -> 379,500 | P31: =tblExpenseCategory_02[[#This Row],[year]]/12 -> 31,625
B32: 服飾費 | C32: 30,000 | F32: 30,000 | I32: 30,000 | L32: 30,000 | O32: =SUM(tblExpenseCategory_02[[#This Row],[jan]:[dec]]) -> 120,000 | P32: =tblExpenseCategory_02[[#This Row],[year]]/12 -> 10,000
B33: 外食 | C33: 12,500 | D33: 12,500 | E33: 30,000 | F33: 12,500 | G33: 12,500 | H33: 20,000 | I33: 12,500 | J33: 12,500 | K33: 12,500 | L33: 12,500 | M33: 12,500 | N33: 12,500 | O33: =SUM(tblExpenseCategory_02[[#This Row],[jan]:[dec]]) -> 175,000 | P33: =tblExpenseCategory_02[[#This Row],[year]]/12 -> 14,583
B34: 美容院/理容院 | C34: 2,500 | E34: 5,000 | G34: 2,500 | I34: 5,000 | K34: 2,500 | M34: 10,000 | O34: =SUM(tblExpenseCategory_02[[#This Row],[jan]:[dec]]) -> 27,500 | P34: =tblExpenseCategory_02[[#This Row],[year]]/12 -> 2,292
B35: その他 | O35: =SUM(tblExpenseCategory_02[[#This Row],[jan]:[dec]]) -> 0 | P35: =tblExpenseCategory_02[[#This Row],[year]]/12 -> 0
B36: =UPPER("合計 " & B30) -> 合計 生活 | C36: =SUM(tblExpenseCategory_02[jan]) -> 79,500 | D36: =SUM(tblExpenseCategory_02[feb]) -> 37,500 | E36: =SUM(tblExpenseCategory_02[mar]) -> 55,000 | F36: =SUM(tblExpenseCategory_02[apr]) -> 82,500 | G36: =SUM(tblExpenseCategory_02[may]) -> 50,000 | H36: =SUM(tblExpenseCategory_02[jun]) -> 45,000 | I36: =SUM(tblExpenseCategory_02[jul]) -> 87,500 | J36: =SUM(tblExpenseCategory_02[aug]) -> 47,500 | K36: =SUM(tblExpenseCategory_02[sep]) -> 40,000 | L36: =SUM(tblExpenseCategory_02[oct]) -> 82,500 | M36: =SUM(tblExpenseCategory_02[nov]) -> 57,500 | N36: =SUM(tblExpenseCategory_02[dec]) -> 37,500 | O36: =SUM(tblExpenseCategory_02[year]) -> 702,000 | P36: =tblExpenseCategory_02[[#Totals],[year]]/12 -> 58,500
B39: 子供
B40: 学費 | C40: 12,300 | E40: 10,000 | J40: 34,500 | O40: =SUM(tblExpenseCategory_03[[#This Row],[jan]:[dec]]) -> 56,800 | P40: =tblExpenseCategory_03[[#This Row],[year]]/12 -> 4,733
B41: 服飾費 | D41: 10,000 | G41: 10,000 | K41: 10,000 | N41: 10,000 | O41: =SUM(tblExpenseCategory_03[[#This Row],[jan]:[dec]]) -> 40,000 | P41: =tblExpenseCategory_03[[#This Row],[year]]/12 -> 3,333
B42: 給食費 | C42: 5,000 | D42: 5,000 | E42: 5,000 | F42: 5,000 | G42: 5,000 | H42: 5,000 | K42: 5,000 | L42: 5,000 | M42: 5,000 | N42: 5,000 | O42: =SUM(tblExpenseCategory_03[[#This Row],[jan]:[dec]]) -> 50,000 | P42: =tblExpenseCategory_03[[#This Row],[year]]/12 -> 4,167
B43: 医療 | C43: 20,000 | D43: 20,000 | E43: 20,000 | F43: 20,000 | G43: 20,000 | H43: 20,000 | I43: 20,000 | J43: 20,000 | K43: 20,000 | L43: 20,000 | M43: 20,000 | N43: 20,000 | O43: =SUM(tblExpenseCategory_03[[#This Row],[jan]:[dec]]) -> 240,000 | P43: =tblExpenseCategory_03[[#This Row],[year]]/12 -> 20,000
B44: その他 | C44: 200,000 | D44: 15,000 | H44: 20,000 | L44: 10,000 | O44: =SUM(tblExpenseCategory_03[[#This Row],[jan]:[dec]]) -> 245,000 | P44: =tblExpenseCategory_03[[#This Row],[year]]/12 -> 20,417
B45: =UPPER("合計 " & B39) -> 合計 子供 | C45: =SUM(tblExpenseCategory_03[jan]) -> 237,300 | D45: =SUM(tblExpenseCategory_03[feb]) -> 50,000 | E45: =SUM(tblExpenseCategory_03[mar]) -> 35,000 | F45: =SUM(tblExpenseCategory_03[apr]) -> 25,000 | G45: =SUM(tblExpenseCategory_03[may]) -> 35,000 | H45: =SUM(tblExpenseCategory_03[jun]) -> 45,000 | I45: =SUM(tblExpenseCategory_03[jul]) -> 20,000 | J45: =SUM(tblExpenseCategory_03[aug]) -> 54,500 | K45: =SUM(tblExpenseCategory_03[sep]) -> 35,000 | L45: =SUM(tblExpenseCategory_03[oct]) -> 35,000 | M45: =SUM(tblExpenseCategory_03[nov]) -> 25,000 | N45: =SUM(tblExpenseCategory_03[dec]) -> 35,000 | O45: =SUM(tblExpenseCategory_03[year]) -> 631,800 | P45: =tblExpenseCategory_03[[#Totals],[year]]/12 -> 52,650
B48: 交通費
B49: 自動車の支払 | C49: 60,000 | D49: 60,000 | E49: 60,000 | F49: 60,000 | G49: 60,000 | H49: 60,000 | I49: 60,000 | J49: 60,000 | K49: 60,000 | L49: 60,000 | M49: 60,000 | N49: 60,000 | O49: =SUM(tblExpenseCategory_04[[#This Row],[jan]:[dec]]) -> 720,000 | P49: =tblExpenseCategory_04[[#This Row],[year]]/12 -> 60,000
B50: 燃料費 | C50: 32,500 | D50: 32,500 | E50: 32,500 | F50: 32,500 | G50: 32,500 | H50: 50,000 | I50: 50,000 | J50: 50,000 | K50: 32,500 | L50: 32,500 | M50: 32,500 | N50: 32,500 | O50: =SUM(tblExpenseCategory_04[[#This Row],[jan]:[dec]]) -> 442,500 | P50: =tblExpenseCategory_04[[#This Row],[year]]/12 -> 36,875
B51: 修理 | D51: 10,000 | F51: 10,000 | H51: 10,000 | J51: 10,000 | L51: 10,000 | O51: =SUM(tblExpenseCategory_04[[#This Row],[jan]:[dec]]) -> 50,000 | P51: =tblExpenseCategory_04[[#This Row],[year]]/12 -> 4,167
B52: 登録/免許 | C52: 18,500 | K52: 22,500 | O52: =SUM(tblExpenseCategory_04[[#This Row],[jan]:[dec]]) -> 41,000 | P52: =tblExpenseCategory_04[[#This Row],[year]]/12 -> 3,417
B53: その他 | G53: 40,000 | O53: =SUM(tblExpenseCategory_04[[#This Row],[jan]:[dec]]) -> 40,000 | P53: =tblExpenseCategory_04[[#This Row],[year]]/12 -> 3,333
B54: =UPPER("合計 " & B48) -> 合計 交通費 | C54: =SUM(tblExpenseCategory_04[jan]) -> 111,000 | D54: =SUM(tblExpenseCategory_04[feb]) -> 102,500 | E54: =SUM(tblExpenseCategory_04[mar]) -> 92,500 | F54: =SUM(tblExpenseCategory_04[apr]) -> 102,500 | G54: =SUM(tblExpenseCategory_04[may]) -> 132,500 | H54: =SUM(tblExpenseCategory_04[jun]) -> 120,000 | I54: =SUM(tblExpenseCategory_04[jul]) -> 110,000 | J54: =SUM(tblExpenseCategory_04[aug]) -> 120,000 | K54: =SUM(tblExpenseCategory_04[sep]) -> 115,000 | L54: =SUM(tblExpenseCategory_04[oct]) -> 102,500 | M54: =SUM(tblExpenseCategory_04[nov]) -> 92,500 | N54: =SUM(tblExpenseCategory_04[dec]) -> 92,500 | O54: =SUM(tblExpenseCategory_04[year]) -> 1,293,500 | P54: =tblExpenseCategory_04[[#Totals],[year]]/12 -> 107,792
B57: 健康
B58: 病院/歯科医院 | D58: 3,500 | G58: 3,500 | H58: 3,500 | I58: 3,500 | L58: 3,500 | O58: =SUM(tblExpenseCategory_05[[#This Row],[jan]:[dec]]) -> 17,500 | P58: =tblExpenseCategory_05[[#This Row],[year]]/12 -> 1,458
B59: 薬 | C59: 2,500 | D59: 2,500 | E59: 2,500 | F59: 2,500 | G59: 2,500 | H59: 2,500 | I59: 2,500 | J59: 2,500 | K59: 2,500 | L59: 2,500 | M59: 2,500 | N59: 2,500 | O59: =SUM(tblExpenseCategory_05[[#This Row],[jan]:[dec]]) -> 30,000 | P59: =tblExpenseCategory_05[[#This Row],[year]]/12 -> 2,500
B60: その他 | E60: 15,000 | K60: 15,000 | O60: =SUM(tblExpenseCategory_05[[#This Row],[jan]:[dec]]) -> 30,000 | P60: =tblExpenseCategory_05[[#This Row],[year]]/12 -> 2,500
B61: =UPPER("合計 " & B57) -> 合計 健康 | C61: =SUM(tblExpenseCategory_05[jan]) -> 2,500 | D61: =SUM(tblExpenseCategory_05[feb]) -> 6,000 | E61: =SUM(tblExpenseCategory_05[mar]) -> 17,500 | F61: =SUM(tblExpenseCategory_05[apr]) -> 2,500 | G61: =SUM(tblExpenseCategory_05[may]) -> 6,000 | H61: =SUM(tblExpenseCategory_05[jun]) -> 6,000 | I61: =SUM(tblExpenseCategory_05[jul]) -> 6,000 | J61: =SUM(tblExpenseCategory_05[aug]) -> 2,500 | K61: =SUM(tblExpenseCategory_05[sep]) -> 17,500 | L61: =SUM(tblExpenseCategory_05[oct]) -> 6,000 | M61: =SUM(tblExpenseCategory_05[nov]) -> 2,500 | N61: =SUM(tblExpenseCategory_05[dec]) -> 2,500 | O61: =SUM(tblExpenseCategory_05[year]) -> 77,500 | P61: =tblExpenseCategory_05[[#Totals],[year]]/12 -> 6,458
B64: 保険
B65: 自動車 | C65: 15,000 | D65: 15,000 | E65: 15,000 | F65: 15,000 | G65: 15,000 | H65: 15,000 | I65: 15,000 | J65: 15,000 | K65: 15,000 | L65: 15,000 | M65: 15,000 | N65: 15,000 | O65: =SUM(tblExpenseCategory_06[[#This Row],[jan]:[dec]]) -> 180,000 | P65: =tblExpenseCategory_06[[#This Row],[year]]/12 -> 15,000
B66: 健康 | C66: 67,500 | D66: 67,500 | E66: 67,500 | F66: 67,500 | G66: 67,500 | H66: 67,500 | I66: 67,500 | J66: 67,500 | K66: 67,500 | L66: 67,500 | M66: 67,500 | N66: 67,500 | O66: =SUM(tblExpenseCategory_06[[#This Row],[jan]:[dec]]) -> 810,000 | P66: =tblExpenseCategory_06[[#This Row],[year]]/12 -> 67,500
B67: 生命 | C67: 15,000 | D67: 15,000 | E67: 15,000 | F67: 15,000 | G67: 15,000 | H67: 15,000 | I67: 15,000 | J67: 15,000 | K67: 15,000 | L67: 15,000 | M67: 15,000 | N67: 15,000 | O67: =SUM(tblExpenseCategory_06[[#This Row],[jan]:[dec]]) -> 180,000 | P67: =tblExpenseCategory_06[[#This Row],[year]]/12 -> 15,000
B68: =UPPER("合計 " & B64) -> 合計 保険 | C68: =SUM(tblExpenseCategory_06[jan]) -> 97,500 | D68: =SUM(tblExpenseCategory_06[feb]) -> 97,500 | E68: =SUM(tblExpenseCategory_06[mar]) -> 97,500 | F68: =SUM(tblExpenseCategory_06[apr]) -> 97,500 | G68: =SUM(tblExpenseCategory_06[may]) -> 97,500 | H68: =SUM(tblExpenseCategory_06[jun]) -> 97,500 | I68: =SUM(tblExpenseCategory_06[jul]) -> 97,500 | J68: =SUM(tblExpenseCategory_06[aug]) -> 97,500 | K68: =SUM(tblExpenseCategory_06[sep]) -> 97,500 | L68: =SUM(tblExpenseCategory_06[oct]) -> 97,500 | M68: =SUM(tblExpenseCategory_06[nov]) -> 97,500 | N68: =SUM(tblExpenseCategory_06[dec]) -> 97,500 | O68: =SUM(tblExpenseCategory_06[year]) -> 1,170,000 | P68: =tblExpenseCategory_06[[#Totals],[year]]/12 -> 97,500
B71: 教育
B72: 授業料 | E72: 40,000 | K72: 40,000 | O72: =SUM(tblExpenseCategory_07[[#This Row],[jan]:[dec]]) -> 80,000 | P72: =tblExpenseCategory_07[[#This Row],[year]]/12 -> 6,667
B73: 書籍代 | E73: 22,500 | K73: 22,500 | O73: =SUM(tblExpenseCategory_07[[#This Row],[jan]:[dec]]) -> 45,000 | P73: =tblExpenseCategory_07[[#This Row],[year]]/12 -> 3,750
B74: その他 | O74: =SUM(tblExpenseCategory_07[[#This Row],[jan]:[dec]]) -> 0 | P74: =tblExpenseCategory_07[[#This Row],[year]]/12 -> 0
B75: =UPPER("合計 " & B71) -> 合計 教育 | C75: =SUM(tblExpenseCategory_07[jan]) -> 0 | D75: =SUM(tblExpenseCategory_07[feb]) -> 0 | E75: =SUM(tblExpenseCategory_07[mar]) -> 62,500 | F75: =SUM(tblExpenseCategory_07[apr]) -> 0 | G75: =SUM(tblExpenseCategory_07[may]) -> 0 | H75: =SUM(tblExpenseCategory_07[jun]) -> 0 | I75: =SUM(tblExpenseCategory_07[jul]) -> 0 | J75: =SUM(tblExpenseCategory_07[aug]) -> 0 | K75: =SUM(tblExpenseCategory_07[sep]) -> 62,500 | L75: =SUM(tblExpenseCategory_07[oct]) -> 0 | M75: =SUM(tblExpenseCategory_07[nov]) -> 0 | N75: =SUM(tblExpenseCategory_07[dec]) -> 0 | O75: =SUM(tblExpenseCategory_07[year]) -> 125,000 | P75: =tblExpenseCategory_07[[#Totals],[year]]/12 -> 10,417
B78: 寄付
B79: ギフト | D79: 10,000 | H79: 10,000 | L79: 10,000 | O79: =SUM(tblExpenseCategory_08[[#This Row],[jan]:[dec]]) -> 30,000 | P79: =tblExpenseCategory_08[[#This Row],[year]]/12 -> 2,500
B80: 慈善寄付 | E80: 10,000 | G80: 10,000 | I80: 10,000 | K80: 10,000 | M80: 10,000 | O80: =SUM(tblExpenseCategory_08[[#This Row],[jan]:[dec]]) -> 50,000 | P80: =tblExpenseCategory_08[[#This Row],[year]]/12 -> 4,167
B81: その他 | F81: 10,000 | J81: 10,000 | N81: 10,000 | O81: =SUM(tblExpenseCategory_08[[#This Row],[jan]:[dec]]) -> 30,000 | P81: =tblExpenseCategory_08[[#This Row],[year]]/12 -> 2,500
B82: =UPPER("合計 " & B78) -> 合計 寄付 | C82: =SUM(tblExpenseCategory_08[jan]) -> 0 | D82: =SUM(tblExpenseCategory_08[feb]) -> 10,000 | E82: =SUM(tblExpenseCategory_08[mar]) -> 10,000 | F82: =SUM(tblExpenseCategory_08[apr]) -> 10,000 | G82: =SUM(tblExpenseCategory_08[may]) -> 10,000 | H82: =SUM(tblExpenseCategory_08[jun]) -> 10,000 | I82: =SUM(tblExpenseCategory_08[jul]) -> 10,000 | J82: =SUM(tblExpenseCategory_08[aug]) -> 10,000 | K82: =SUM(tblExpenseCategory_08[sep]) -> 10,000 | L82: =SUM(tblExpenseCategory_08[oct]) -> 10,000 | M82: =SUM(tblExpenseCategory_08[nov]) -> 10,000 | N82: =SUM(tblExpenseCategory_08[dec]) -> 10,000 | O82: =SUM(tblExpenseCategory_08[year]) -> 110,000 | P82: =tblExpenseCategory_08[[#Totals],[year]]/12 -> 9,167
B85: 貯蓄
B86: 緊急用 | C86: 10,000 | D86: 10,000 | E86: 10,000 | F86: 10,000 | G86: 10,000 | K86: 10,000 | L86: 10,000 | M86: 10,000 | N86: 10,000 | O86: =SUM(tblExpenseCategory_09[[#This Row],[jan]:[dec]]) -> 90,000 | P86: =tblExpenseCategory_09[[#This Row],[year]]/12 -> 7,500
B87: 退職金 (401 k、IRA) | C87: 50,000 | D87: 50,000 | E87: 50,000 | F87: 50,000 | G87: 50,000 | H87: 50,000 | I87: 50,000 | J87: 50,000 | K87: 50,000 | L87: 50,000 | M87: 50,000 | N87: 50,000 | O87: =SUM(tblExpenseCategory_09[[#This Row],[jan]:[dec]]) -> 600,000 | P87: =tblExpenseCategory_09[[#This Row],[year]]/12 -> 50,000
B88: 貯蓄口座への振込 | C88: 20,000 | D88: 20,000 | E88: 20,000 | F88: 20,000 | G88: 20,000 | K88: 20,000 | L88: 20,000 | M88: 20,000 | N88: 20,000 | O88: =SUM(tblExpenseCategory_09[[#This Row],[jan]:[dec]]) -> 180,000 | P88: =tblExpenseCategory_09[[#This Row],[year]]/12 -> 15,000
B89: =UPPER("合計 " & B85) -> 合計 貯蓄 | C89: =SUM(tblExpenseCategory_09[jan]) -> 80,000 | D89: =SUM(tblExpenseCategory_09[feb]) -> 80,000 | E89: =SUM(tblExpenseCategory_09[mar]) -> 80,000 | F89: =SUM(tblExpenseCategory_09[apr]) -> 80,000 | G89: =SUM(tblExpenseCategory_09[may]) -> 80,000 | H89: =SUM(tblExpenseCategory_09[jun]) -> 50,000 | I89: =SUM(tblExpenseCategory_09[jul]) -> 50,000 | J89: =SUM(tblExpenseCategory_09[aug]) -> 50,000 | K89: =SUM(tblExpenseCategory_09[sep]) -> 80,000 | L89: =SUM(tblExpenseCategory_09[oct]) -> 80,000 | M89: =SUM(tblExpenseCategory_09[nov]) -> 80,000 | N89: =SUM(tblExpenseCategory_09[dec]) -> 80,000 | O89: =SUM(tblExpenseCategory_09[year]) -> 870,000 | P89: =tblExpenseCategory_09[[#Totals],[year]]/12 -> 72,500
B92: 負債
B93: クレジット カード # 1 | C93: 14,500 | D93: 14,500 | E93: 14,500 | F93: 14,500 | G93: 14,500 | H93: 14,500 | I93: 14,500 | J93: 14,500 | K93: 14,500 | L93: 14,500 | M93: 14,500 | N93: 14,500 | O93: =SUM(tblExpenseCategory_10[[#This Row],[jan]:[dec]]) -> 174,000 | P93: =tblExpenseCategory_10[[#This Row],[year]]/12 -> 14,500
B94: 国税 | C94: 45,000 | F94: 45,000 | I94: 45,000 | L94: 45,000 | O94: =SUM(tblExpenseCategory_10[[#This Row],[jan]:[dec]]) -> 180,000 | P94: =tblExpenseCategory_10[[#This Row],[year]]/12 -> 15,000
B95: 学生ローン | C95: 5,500 | D95: 5,500 | E95: 5,500 | F95: 5,500 | G95: 5,500 | H95: 5,500 | I95: 5,500 | J95: 5,500 | K95: 5,500 | L95: 5,500 | M95: 5,500 | N95: 5,500 | O95: =SUM(tblExpenseCategory_10[[#This Row],[jan]:[dec]]) -> 66,000 | P95: =tblExpenseCategory_10[[#This Row],[year]]/12 -> 5,500
B96: =UPPER("合計 " & B92) -> 合計 負債 | C96: =SUM(tblExpenseCategory_10[jan]) -> 65,000 | D96: =SUM(tblExpenseCategory_10[feb]) -> 20,000 | E96: =SUM(tblExpenseCategory_10[mar]) -> 20,000 | F96: =SUM(tblExpenseCategory_10[apr]) -> 65,000 | G96: =SUM(tblExpenseCategory_10[may]) -> 20,000 | H96: =SUM(tblExpenseCategory_10[jun]) -> 20,000 | I96: =SUM(tblExpenseCategory_10[jul]) -> 65,000 | J96: =SUM(tblExpenseCategory_10[aug]) -> 20,000 | K96: =SUM(tblExpenseCategory_10[sep]) -> 20,000 | L96: =SUM(tblExpenseCategory_10[oct]) -> 65,000 | M96: =SUM(tblExpenseCategory_10[nov]) -> 20,000 | N96: =SUM(tblExpenseCategory_10[dec]) -> 20,000 | O96: =SUM(tblExpenseCategory_10[year]) -> 420,000 | P96: =tblExpenseCategory_10[[#Totals],[year]]/12 -> 35,000
O100: =SUM(tblExpenseCategory_11[[#This Row],[jan]:[dec]]) -> 0 | P100: =tblExpenseCategory_11[[#This Row],[year]]/12 -> 0
O101: =SUM(tblExpenseCategory_11[[#This Row],[jan]:[dec]]) -> 0 | P101: =tblExpenseCategory_11[[#This Row],[year]]/12 -> 0
O102: =SUM(tblExpenseCategory_11[[#This Row],[jan]:[dec]]) -> 0 | P102: =tblExpenseCategory_11[[#This Row],[year]]/12 -> 0
B103: =UPPER("合計 " & B99) -> 合計 | C103: =SUM(tblExpenseCategory_11[jan]) -> 0 | D103: =SUM(tblExpenseCategory_11[feb]) -> 0 | E103: =SUM(tblExpenseCategory_11[mar]) -> 0 | F103: =SUM(tblExpenseCategory_11[apr]) -> 0 | G103: =SUM(tblExpenseCategory_11[may]) -> 0 | H103: =SUM(tblExpenseCategory_11[jun]) -> 0 | I103: =SUM(tblExpenseCategory_11[jul]) -> 0 | J103: =SUM(tblExpenseCategory_11[aug]) -> 0 | K103: =SUM(tblExpenseCategory_11[sep]) -> 0 | L103: =SUM(tblExpenseCategory_11[oct]) -> 0 | M103: =SUM(tblExpenseCategory_11[nov]) -> 0 | N103: =SUM(tblExpenseCategory_11[dec]) -> 0 | O103: =SUM(tblExpenseCategory_11[year]) -> 0 | P103: =tblExpenseCategory_11[[#Totals],[year]]/12 -> 0
O107: =SUM(tblExpenseCategory_12[[#This Row],[jan]:[dec]]) -> 0 | P107: =tblExpenseCategory_12[[#This Row],[year]]/12 -> 0
O108: =SUM(tblExpenseCategory_12[[#This Row],[jan]:[dec]]) -> 0 | P108: =tblExpenseCategory_12[[#This Row],[year]]/12 -> 0
O109: =SUM(tblExpenseCategory_12[[#This Row],[jan]:[dec]]) -> 0 | P109: =tblExpenseCategory_12[[#This Row],[year]]/12 -> 0
B110: =UPPER("合計 " & B106) -> 合計 | C110: =SUM(tblExpenseCategory_12[jan]) -> 0 | D110: =SUM(tblExpenseCategory_12[feb]) -> 0 | E110: =SUM(tblExpenseCategory_12[mar]) -> 0 | F110: =SUM(tblExpenseCategory_12[apr]) -> 0 | G110: =SUM(tblExpenseCategory_12[may]) -> 0 | H110: =SUM(tblExpenseCategory_12[jun]) -> 0 | I110: =SUM(tblExpenseCategory_12[jul]) -> 0 | J110: =SUM(tblExpenseCategory_12[aug]) -> 0 | K110: =SUM(tblExpenseCategory_12[sep]) -> 0 | L110: =SUM(tblExpenseCategory_12[oct]) -> 0 | M110: =SUM(tblExpenseCategory_12[nov]) -> 0 | N110: =SUM(tblExpenseCategory_12[dec]) -> 0 | O110: =SUM(tblExpenseCategory_12[year]) -> 0 | P110: =tblExpenseCategory_12[[#Totals],[year]]/12 -> 0
O114: =SUM(tblExpenseCategory_13[[#This Row],[jan]:[dec]]) -> 0 | P114: =tblExpenseCategory_13[[#This Row],[year]]/12 -> 0
O115: =SUM(tblExpenseCategory_13[[#This Row],[jan]:[dec]]) -> 0 | P115: =tblExpenseCategory_13[[#This Row],[year]]/12 -> 0
O116: =SUM(tblExpenseCategory_13[[#This Row],[jan]:[dec]]) -> 0 | P116: =tblExpenseCategory_13[[#This Row],[year]]/12 -> 0
B117: =UPPER("合計 " & B113) -> 合計 | C117: =SUM(tblExpenseCategory_13[jan]) -> 0 | D117: =SUM(tblExpenseCategory_13[feb]) -> 0 | E117: =SUM(tblExpenseCategory_13[mar]) -> 0 | F117: =SUM(tblExpenseCategory_13[apr]) -> 0 | G117: =SUM(tblExpenseCategory_13[may]) -> 0 | H117: =SUM(tblExpenseCategory_13[jun]) -> 0 | I117: =SUM(tblExpenseCategory_13[jul]) -> 0 | J117: =SUM(tblExpenseCategory_13[aug]) -> 0 | K117: =SUM(tblExpenseCategory_13[sep]) -> 0 | L117: =SUM(tblExpenseCategory_13[oct]) -> 0 | M117: =SUM(tblExpenseCategory_13[nov]) -> 0 | N117: =SUM(tblExpenseCategory_13[dec]) -> 0 | O117: =SUM(tblExpenseCategory_13[year]) -> 0 | P117: =tblExpenseCategory_13[[#Totals],[year]]/12 -> 0
O121: =SUM(tblExpenseCategory_14[[#This Row],[jan]:[dec]]) -> 0 | P121: =tblExpenseCategory_14[[#This Row],[year]]/12 -> 0
O122: =SUM(tblExpenseCategory_14[[#This Row],[jan]:[dec]]) -> 0 | P122: =tblExpenseCategory_14[[#This Row],[year]]/12 -> 0
O123: =SUM(tblExpenseCategory_14[[#This Row],[jan]:[dec]]) -> 0 | P123: =tblExpenseCategory_14[[#This Row],[year]]/12 -> 0
B124: =UPPER("合計 " & B120) -> 合計 | C124: =SUM(tblExpenseCategory_14[jan]) -> 0 | D124: =SUM(tblExpenseCategory_14[feb]) -> 0 | E124: =SUM(tblExpenseCategory_14[mar]) -> 0 | F124: =SUM(tblExpenseCategory_14[apr]) -> 0 | G124: =SUM(tblExpenseCategory_14[may]) -> 0 | H124: =SUM(tblExpenseCategory_14[jun]) -> 0 | I124: =SUM(tblExpenseCategory_14[jul]) -> 0 | J124: =SUM(tblExpenseCategory_14[aug]) -> 0 | K124: =SUM(tblExpenseCategory_14[sep]) -> 0 | L124: =SUM(tblExpenseCategory_14[oct]) -> 0 | M124: =SUM(tblExpenseCategory_14[nov]) -> 0 | N124: =SUM(tblExpenseCategory_14[dec]) -> 0 | O124: =SUM(tblExpenseCategory_14[year]) -> 0 | P124: =tblExpenseCategory_14[[#Totals],[year]]/12 -> 0
O128: =SUM(tblExpenseCategory_15[[#This Row],[jan]:[dec]]) -> 0 | P128: =tblExpenseCategory_15[[#This Row],[year]]/12 -> 0
O129: =SUM(tblExpenseCategory_15[[#This Row],[jan]:[dec]]) -> 0 | P129: =tblExpenseCategory_15[[#This Row],[year]]/12 -> 0
O130: =SUM(tblExpenseCategory_15[[#This Row],[jan]:[dec]]) -> 0 | P130: =tblExpenseCategory_15[[#This Row],[year]]/12 -> 0
B131: =UPPER("合計 " & B127) -> 合計 | C131: =SUM(tblExpenseCategory_15[jan]) -> 0 | D131: =SUM(tblExpenseCategory_15[feb]) -> 0 | E131: =SUM(tblExpenseCategory_15[mar]) -> 0 | F131: =SUM(tblExpenseCategory_15[apr]) -> 0 | G131: =SUM(tblExpenseCategory_15[may]) -> 0 | H131: =SUM(tblExpenseCategory_15[jun]) -> 0 | I131: =SUM(tblExpenseCategory_15[jul]) -> 0 | J131: =SUM(tblExpenseCategory_15[aug]) -> 0 | K131: =SUM(tblExpenseCategory_15[sep]) -> 0 | L131: =SUM(tblExpenseCategory_15[oct]) -> 0 | M131: =SUM(tblExpenseCategory_15[nov]) -> 0 | N131: =SUM(tblExpenseCategory_15[dec]) -> 0 | O131: =SUM(tblExpenseCategory_15[year]) -> 0 | P131: =tblExpenseCategory_15[[#Totals],[year]]/12 -> 0

Sheet 設定
B1: 青木家 2012 年
B2: 収入 | D2: 支出
B3: 給与/チップ | F3: このシートの表を使用して、収支シートの表の名前とドロップダウン リストの項目を構成します
B4: 金利収入 | D4: 住居 | F4: 住居 | H4: 生活 | J4: 子供
B5: 配当 | D5: 生活 | F5: 住宅ローン/家賃 | H5: 食料品 | J5: 医療
B6: ギフト受け取り | D6: 子供 | F6: 電気 | H6: 個人用品 | J6: 服飾費
B7: 還付/償還 | D7: 交通費 | F7: ガス/石油 | H7: 服飾費 | J7: 学費
B8: 貯蓄口座からの振替 | D8: 健康 | F8: 上下水道/ごみ | H8: 清掃サービス | J8: 給食費
B9: その他 | D9: 保険 | F9: 電話番号 | H9: 外食 | J9: 学用品
D10: 教育 | F10: ケーブル テレビ/衛星放送 | H10: ドライ クリーニング | J10: ベビーシッター
D11: 寄付 | F11: インターネット | H11: 美容院/理容院 | J11: 玩具/ゲーム
D12: 貯蓄 | F12: 家具/電化製品 | H12: その他 | J12: その他
D13: 負債 | F13: 芝生/庭
D14: 娯楽費 | F14: 家庭用品
D15: ペット | F15: 修理
D16: 購読 | F16: 改築
D17: 休暇 | F17: その他
D18: その他
F20: 交通費 | H20: 健康 | J20: 保険
F21: 自動車の支払 | H21: 病院/歯科医院 | J21: 自動車
F22: 燃料費 | H22: 薬 | J22: 健康
F23: バス/タクシー/電車料金 | H23: スポーツ クラブ会費 | J23: 住宅/賃貸
F24: 修理 | H24: 緊急 | J24: 生命
F25: 登録/免許 | H25: その他 | J25: その他
F26: その他
F29: 教育 | H29: 寄付 | J29: 貯蓄
F30: 授業料 | H30: ギフト | J30: 緊急用
F31: 書籍代 | H31: 慈善寄付 | J31: 貯蓄口座への振込
F32: 音楽レッスン | H32: 宗教上の寄付 | J32: 退職金 (401 k、IRA)
F33: その他 | H33: その他 | J33: 投資
J34: 大学
J35: その他
F38: 負債 | H38: 娯楽費 | J38: ペット
F39: 学生ローン | H39: ビデオ/DVD | J39: 食費
F40: その他のローン | H40: 音楽 | J40: 医療
F41: クレジット カード # 1 | H41: ゲーム | J41: 玩具/ペット用品
F42: クレジット カード # 2 | H42: レンタル | J42: その他
F43: クレジット カード # 3 | H43: 映画
F44: 慰謝料/養育費 | H44: コンサート/演劇
F45: 国税 | H45: 書籍代
F46: 財産税 | H46: 趣味
F47: 地方税 | H47: ビデオ/写真
F48: 自治会費 | H48: スポーツ
F49: 弁護士費用 | H49: アウトドア
F50: その他 | H50: 玩具/ガジェット
H51: その他
F53: 購読 | H53: 休暇 | J53: その他
F54: 新聞 | H54: 旅行 | J54: 銀行手数料
F55: 雑誌 | H55: 宿泊費 | J55: 郵送料
F56: 手数料 | H56: 食費 | J56: その他
F57: 会費 | H57: レンタカー
F58: その他 | H58: 娯楽費
H59: その他

Sheet グラフ データ (hidden)
B1: ***このシートは、非表示***ままにしてください
B4: の期間 | C4: 3
C6: 1 月 | D6: 2 月 | E6: 3 月 | F6: 4 月 | G6: 5 月 | H6: 6 月 | I6: 7 月 | J6: 8 月 | K6: 9 月 | L6: 10 月 | M6: 11 月 | N6: 12 月 | O6: 年 | P6: 平均
B7: =LOWER(予算!B127) ->  | C7: =SUM(tblExpenseCategory_15[jan]) -> 0 | D7: =SUM(tblExpenseCategory_15[feb]) -> 0 | E7: =SUM(tblExpenseCategory_15[mar]) -> 0 | F7: =SUM(tblExpenseCategory_15[apr]) -> 0 | G7: =SUM(tblExpenseCategory_15[may]) -> 0 | H7: =SUM(tblExpenseCategory_15[jun]) -> 0 | I7: =SUM(tblExpenseCategory_15[jul]) -> 0 | J7: =SUM(tblExpenseCategory_15[aug]) -> 0 | K7: =SUM(tblExpenseCategory_15[sep]) -> 0 | L7: =SUM(tblExpenseCategory_15[oct]) -> 0 | M7: =SUM(tblExpenseCategory_15[nov]) -> 0 | N7: =SUM(tblExpenseCategory_15[dec]) -> 0 | O7: =SUM(tblExpenseCategory_15[year]) -> 0 | P7: =SUM(tblExpenseCategory_15[avg]) -> 0
B8: =LOWER(予算!B120) ->  | C8: =SUM(tblExpenseCategory_14[jan]) -> 0 | D8: =SUM(tblExpenseCategory_14[feb]) -> 0 | E8: =SUM(tblExpenseCategory_14[mar]) -> 0 | F8: =SUM(tblExpenseCategory_14[apr]) -> 0 | G8: =SUM(tblExpenseCategory_14[may]) -> 0 | H8: =SUM(tblExpenseCategory_14[jun]) -> 0 | I8: =SUM(tblExpenseCategory_14[jul]) -> 0 | J8: =SUM(tblExpenseCategory_14[aug]) -> 0 | K8: =SUM(tblExpenseCategory_14[sep]) -> 0 | L8: =SUM(tblExpenseCategory_14[oct]) -> 0 | M8: =SUM(tblExpenseCategory_14[nov]) -> 0 | N8: =SUM(tblExpenseCategory_14[dec]) -> 0 | O8: =SUM(tblExpenseCategory_14[year]) -> 0 | P8: =SUM(tblExpenseCategory_14[avg]) -> 0
B9: =LOWER(予算!B113) ->  | C9: =SUM(tblExpenseCategory_13[jan]) -> 0 | D9: =SUM(tblExpenseCategory_13[feb]) -> 0 | E9: =SUM(tblExpenseCategory_13[mar]) -> 0 | F9: =SUM(tblExpenseCategory_13[apr]) -> 0 | G9: =SUM(tblExpenseCategory_13[may]) -> 0 | H9: =SUM(tblExpenseCategory_13[jun]) -> 0 | I9: =SUM(tblExpenseCategory_13[jul]) -> 0 | J9: =SUM(tblExpenseCategory_13[aug]) -> 0 | K9: =SUM(tblExpenseCategory_13[sep]) -> 0 | L9: =SUM(tblExpenseCategory_13[oct]) -> 0 | M9: =SUM(tblExpenseCategory_13[nov]) -> 0 | N9: =SUM(tblExpenseCategory_13[dec]) -> 0 | O9: =SUM(tblExpenseCategory_13[year]) -> 0 | P9: =SUM(tblExpenseCategory_13[avg]) -> 0
B10: =LOWER(予算!B106) ->  | C10: =SUM(tblExpenseCategory_12[jan]) -> 0 | D10: =SUM(tblExpenseCategory_12[feb]) -> 0 | E10: =SUM(tblExpenseCategory_12[mar]) -> 0 | F10: =SUM(tblExpenseCategory_12[apr]) -> 0 | G10: =SUM(tblExpenseCategory_12[may]) -> 0 | H10: =SUM(tblExpenseCategory_12[jun]) -> 0 | I10: =SUM(tblExpenseCategory_12[jul]) -> 0 | J10: =SUM(tblExpenseCategory_12[aug]) -> 0 | K10: =SUM(tblExpenseCategory_12[sep]) -> 0 | L10: =SUM(tblExpenseCategory_12[oct]) -> 0 | M10: =SUM(tblExpenseCategory_12[nov]) -> 0 | N10: =SUM(tblExpenseCategory_12[dec]) -> 0 | O10: =SUM(tblExpenseCategory_12[year]) -> 0 | P10: =SUM(tblExpenseCategory_12[avg]) -> 0
B11: =LOWER(予算!B99) ->  | C11: =SUM(tblExpenseCategory_11[jan]) -> 0 | D11: =SUM(tblExpenseCategory_11[feb]) -> 0 | E11: =SUM(tblExpenseCategory_11[mar]) -> 0 | F11: =SUM(tblExpenseCategory_11[apr]) -> 0 | G11: =SUM(tblExpenseCategory_11[may]) -> 0 | H11: =SUM(tblExpenseCategory_11[jun]) -> 0 | I11: =SUM(tblExpenseCategory_11[jul]) -> 0 | J11: =SUM(tblExpenseCategory_11[aug]) -> 0 | K11: =SUM(tblExpenseCategory_11[sep]) -> 0 | L11: =SUM(tblExpenseCategory_11[oct]) -> 0 | M11: =SUM(tblExpenseCategory_11[nov]) -> 0 | N11: =SUM(tblExpenseCategory_11[dec]) -> 0 | O11: =SUM(tblExpenseCategory_11[year]) -> 0 | P11: =SUM(tblExpenseCategory_11[avg]) -> 0
B12: =LOWER(予算!B92) -> 負債 | C12: =SUM(tblExpenseCategory_10[jan]) -> 65,000 | D12: =SUM(tblExpenseCategory_10[feb]) -> 20,000 | E12: =SUM(tblExpenseCategory_10[mar]) -> 20,000 | F12: =SUM(tblExpenseCategory_10[apr]) -> 65,000 | G12: =SUM(tblExpenseCategory_10[may]) -> 20,000 | H12: =SUM(tblExpenseCategory_10[jun]) -> 20,000 | I12: =SUM(tblExpenseCategory_10[jul]) -> 65,000 | J12: =SUM(tblExpenseCategory_10[aug]) -> 20,000 | K12: =SUM(tblExpenseCategory_10[sep]) -> 20,000 | L12: =SUM(tblExpenseCategory_10[oct]) -> 65,000 | M12: =SUM(tblExpenseCategory_10[nov]) -> 20,000 | N12: =SUM(tblExpenseCategory_10[dec]) -> 20,000 | O12: =SUM(tblExpenseCategory_10[year]) -> 420,000 | P12: =SUM(tblExpenseCategory_10[avg]) -> 35,000
B13: =LOWER(予算!B85) -> 貯蓄 | C13: =SUM(tblExpenseCategory_09[jan]) -> 80,000 | D13: =SUM(tblExpenseCategory_09[feb]) -> 80,000 | E13: =SUM(tblExpenseCategory_09[mar]) -> 80,000 | F13: =SUM(tblExpenseCategory_09[apr]) -> 80,000 | G13: =SUM(tblExpenseCategory_09[may]) -> 80,000 | H13: =SUM(tblExpenseCategory_09[jun]) -> 50,000 | I13: =SUM(tblExpenseCategory_09[jul]) -> 50,000 | J13: =SUM(tblExpenseCategory_09[aug]) -> 50,000 | K13: =SUM(tblExpenseCategory_09[sep]) -> 80,000 | L13: =SUM(tblExpenseCategory_09[oct]) -> 80,000 | M13: =SUM(tblExpenseCategory_09[nov]) -> 80,000 | N13: =SUM(tblExpenseCategory_09[dec]) -> 80,000 | O13: =SUM(tblExpenseCategory_09[year]) -> 870,000 | P13: =SUM(tblExpenseCategory_09[avg]) -> 72,500
B14: =LOWER(予算!B78) -> 寄付 | C14: =SUM(tblExpenseCategory_08[jan]) -> 0 | D14: =SUM(tblExpenseCategory_08[feb]) -> 10,000 | E14: =SUM(tblExpenseCategory_08[mar]) -> 10,000 | F14: =SUM(tblExpenseCategory_08[apr]) -> 10,000 | G14: =SUM(tblExpenseCategory_08[may]) -> 10,000 | H14: =SUM(tblExpenseCategory_08[jun]) -> 10,000 | I14: =SUM(tblExpenseCategory_08[jul]) -> 10,000 | J14: =SUM(tblExpenseCategory_08[aug]) -> 10,000 | K14: =SUM(tblExpenseCategory_08[sep]) -> 10,000 | L14: =SUM(tblExpenseCategory_08[oct]) -> 10,000 | M14: =SUM(tblExpenseCategory_08[nov]) -> 10,000 | N14: =SUM(tblExpenseCategory_08[dec]) -> 10,000 | O14: =SUM(tblExpenseCategory_08[year]) -> 110,000 | P14: =SUM(tblExpenseCategory_08[avg]) -> 9,167
B15: =LOWER(予算!B71) -> 教育 | C15: =SUM(tblExpenseCategory_07[jan]) -> 0 | D15: =SUM(tblExpenseCategory_07[feb]) -> 0 | E15: =SUM(tblExpenseCategory_07[mar]) -> 62,500 | F15: =SUM(tblExpenseCategory_07[apr]) -> 0 | G15: =SUM(tblExpenseCategory_07[may]) -> 0 | H15: =SUM(tblExpenseCategory_07[jun]) -> 0 | I15: =SUM(tblExpenseCategory_07[jul]) -> 0 | J15: =SUM(tblExpenseCategory_07[aug]) -> 0 | K15: =SUM(tblExpenseCategory_07[sep]) -> 62,500 | L15: =SUM(tblExpenseCategory_07[oct]) -> 0 | M15: =SUM(tblExpenseCategory_07[nov]) -> 0 | N15: =SUM(tblExpenseCategory_07[dec]) -> 0 | O15: =SUM(tblExpenseCategory_07[year]) -> 125,000 | P15: =SUM(tblExpenseCategory_07[avg]) -> 10,417
B16: =LOWER(予算!B64) -> 保険 | C16: =SUM(tblExpenseCategory_06[jan]) -> 97,500 | D16: =SUM(tblExpenseCategory_06[feb]) -> 97,500 | E16: =SUM(tblExpenseCategory_06[mar]) -> 97,500 | F16: =SUM(tblExpenseCategory_06[apr]) -> 97,500 | G16: =SUM(tblExpenseCategory_06[may]) -> 97,500 | H16: =SUM(tblExpenseCategory_06[jun]) -> 97,500 | I16: =SUM(tblExpenseCategory_06[jul]) -> 97,500 | J16: =SUM(tblExpenseCategory_06[aug]) -> 97,500 | K16: =SUM(tblExpenseCategory_06[sep]) -> 97,500 | L16: =SUM(tblExpenseCategory_06[oct]) -> 97,500 | M16: =SUM(tblExpenseCategory_06[nov]) -> 97,500 | N16: =SUM(tblExpenseCategory_06[dec]) -> 97,500 | O16: =SUM(tblExpenseCategory_06[year]) -> 1,170,000 | P16: =SUM(tblExpenseCategory_06[avg]) -> 97,500
B17: =LOWER(予算!B57) -> 健康 | C17: =SUM(tblExpenseCategory_05[jan]) -> 2,500 | D17: =SUM(tblExpenseCategory_05[feb]) -> 6,000 | E17: =SUM(tblExpenseCategory_05[mar]) -> 17,500 | F17: =SUM(tblExpenseCategory_05[apr]) -> 2,500 | G17: =SUM(tblExpenseCategory_05[may]) -> 6,000 | H17: =SUM(tblExpenseCategory_05[jun]) -> 6,000 | I17: =SUM(tblExpenseCategory_05[jul]) -> 6,000 | J17: =SUM(tblExpenseCategory_05[aug]) -> 2,500 | K17: =SUM(tblExpenseCategory_05[sep]) -> 17,500 | L17: =SUM(tblExpenseCategory_05[oct]) -> 6,000 | M17: =SUM(tblExpenseCategory_05[nov]) -> 2,500 | N17: =SUM(tblExpenseCategory_05[dec]) -> 2,500 | O17: =SUM(tblExpenseCategory_05[year]) -> 77,500 | P17: =SUM(tblExpenseCategory_05[avg]) -> 6,458
B18: =LOWER(予算!B48) -> 交通費 | C18: =SUM(tblExpenseCategory_04[jan]) -> 111,000 | D18: =SUM(tblExpenseCategory_04[feb]) -> 102,500 | E18: =SUM(tblExpenseCategory_04[mar]) -> 92,500 | F18: =SUM(tblExpenseCategory_04[apr]) -> 102,500 | G18: =SUM(tblExpenseCategory_04[may]) -> 132,500 | H18: =SUM(tblExpenseCategory_04[jun]) -> 120,000 | I18: =SUM(tblExpenseCategory_04[jul]) -> 110,000 | J18: =SUM(tblExpenseCategory_04[aug]) -> 120,000 | K18: =SUM(tblExpenseCategory_04[sep]) -> 115,000 | L18: =SUM(tblExpenseCategory_04[oct]) -> 102,500 | M18: =SUM(tblExpenseCategory_04[nov]) -> 92,500 | N18: =SUM(tblExpenseCategory_04[dec]) -> 92,500 | O18: =SUM(tblExpenseCategory_04[year]) -> 1,293,500 | P18: =SUM(tblExpenseCategory_04[avg]) -> 107,792
B19: =LOWER(予算!B39) -> 子供 | C19: =SUM(tblExpenseCategory_03[jan]) -> 237,300 | D19: =SUM(tblExpenseCategory_03[feb]) -> 50,000 | E19: =SUM(tblExpenseCategory_03[mar]) -> 35,000 | F19: =SUM(tblExpenseCategory_03[apr]) -> 25,000 | G19: =SUM(tblExpenseCategory_03[may]) -> 35,000 | H19: =SUM(tblExpenseCategory_03[jun]) -> 45,000 | I19: =SUM(tblExpenseCategory_03[jul]) -> 20,000 | J19: =SUM(tblExpenseCategory_03[aug]) -> 54,500 | K19: =SUM(tblExpenseCategory_03[sep]) -> 35,000 | L19: =SUM(tblExpenseCategory_03[oct]) -> 35,000 | M19: =SUM(tblExpenseCategory_03[nov]) -> 25,000 | N19: =SUM(tblExpenseCategory_03[dec]) -> 35,000 | O19: =SUM(tblExpenseCategory_03[year]) -> 631,800 | P19: =SUM(tblExpenseCategory_03[avg]) -> 52,650
B20: =LOWER(予算!B30) -> 生活 | C20: =SUM(tblExpenseCategory_02[jan]) -> 79,500 | D20: =SUM(tblExpenseCategory_02[feb]) -> 37,500 | E20: =SUM(tblExpenseCategory_02[mar]) -> 55,000 | F20: =SUM(tblExpenseCategory_02[apr]) -> 82,500 | G20: =SUM(tblExpenseCategory_02[may]) -> 50,000 | H20: =SUM(tblExpenseCategory_02[jun]) -> 45,000 | I20: =SUM(tblExpenseCategory_02[jul]) -> 87,500 | J20: =SUM(tblExpenseCategory_02[aug]) -> 47,500 | K20: =SUM(tblExpenseCategory_02[sep]) -> 40,000 | L20: =SUM(tblExpenseCategory_02[oct]) -> 82,500 | M20: =SUM(tblExpenseCategory_02[nov]) -> 57,500 | N20: =SUM(tblExpenseCategory_02[dec]) -> 37,500 | O20: =SUM(tblExpenseCategory_02[year]) -> 702,000 | P20: =SUM(tblExpenseCategory_02[avg]) -> 58,500
B21: =LOWER(予算!B21) -> 住居 | C21: =SUM(tblExpenseCategory_01[jan]) -> 120,800 | D21: =SUM(tblExpenseCategory_01[feb]) -> 120,800 | E21: =SUM(tblExpenseCategory_01[mar]) -> 123,300 | F21: =SUM(tblExpenseCategory_01[apr]) -> 120,800 | G21: =SUM(tblExpenseCategory_01[may]) -> 115,800 | H21: =SUM(tblExpenseCategory_01[jun]) -> 118,300 | I21: =SUM(tblExpenseCategory_01[jul]) -> 128,300 | J21: =SUM(tblExpenseCategory_01[aug]) -> 133,300 | K21: =SUM(tblExpenseCategory_01[sep]) -> 120,800 | L21: =SUM(tblExpenseCategory_01[oct]) -> 115,800 | M21: =SUM(tblExpenseCategory_01[nov]) -> 120,800 | N21: =SUM(tblExpenseCategory_01[dec]) -> 120,800 | O21: =SUM(tblExpenseCategory_01[year]) -> 1,459,600 | P21: =SUM(tblExpenseCategory_01[avg]) -> 121,633
B26: 累積キャッシュフロー | C26: =SUM(予算!$C$8:C$8) -> -371,400 | D26: =SUM(予算!$C$8:D$8) -> 7,600 | E26: =SUM(予算!$C$8:E$8) -> -185,700 | F26: =SUM(予算!$C$8:F$8) -> -367,000 | G26: =SUM(予算!$C$8:G$8) -> -13,800 | H26: =SUM(予算!$C$8:H$8) -> -373,100 | I26: =SUM(予算!$C$8:I$8) -> -797,400 | J26: =SUM(予算!$C$8:J$8) -> -682,700 | K26: =SUM(予算!$C$8:K$8) -> -881,000 | L26: =SUM(予算!$C$8:L$8) -> -1,075,300 | M26: =SUM(予算!$C$8:M$8) -> -681,100 | N26: =SUM(予算!$C$8:N$8) -> -776,900 | O26: =SUM(予算!$C$8:O$8) -> -1,553,800
B28: 正年間のキャッシュフロー | C28: =IF(予算!C$8<0,NA(),IF(period+2<>COLUMN(予算!C$8),NA(),予算!C$8)) ->  | D28: =IF(予算!D$8<0,NA(),IF(period+2<>COLUMN(予算!D$8),NA(),予算!D$8)) ->  | E28: =IF(予算!E$8<0,NA(),IF(period+2<>COLUMN(予算!E$8),NA(),予算!E$8)) ->  | F28: =IF(予算!F$8<0,NA(),IF(period+2<>COLUMN(予算!F$8),NA(),予算!F$8)) ->  | G28: =IF(予算!G$8<0,NA(),IF(period+2<>COLUMN(予算!G$8),NA(),予算!G$8)) ->  | H28: =IF(予算!H$8<0,NA(),IF(period+2<>COLUMN(予算!H$8),NA(),予算!H$8)) ->  | I28: =IF(予算!I$8<0,NA(),IF(period+2<>COLUMN(予算!I$8),NA(),予算!I$8)) ->  | J28: =IF(予算!J$8<0,NA(),IF(period+2<>COLUMN(予算!J$8),NA(),予算!J$8)) ->  | K28: =IF(予算!K$8<0,NA(),IF(period+2<>COLUMN(予算!K$8),NA(),予算!K$8)) ->  | L28: =IF(予算!L$8<0,NA(),IF(period+2<>COLUMN(予算!L$8),NA(),予算!L$8)) ->  | M28: =IF(予算!M$8<0,NA(),IF(period+2<>COLUMN(予算!M$8),NA(),予算!M$8)) ->  | N28: =IF(予算!N$8<0,NA(),IF(period+2<>COLUMN(予算!N$8),NA(),予算!N$8)) ->  | O28: =IF(予算!O$8<0,NA(),IF(period+2<>COLUMN(予算!O$8),NA(),予算!O$8)) -> 
B29: 負の年間のキャッシュフロー | C29: =IF(予算!C$8>=0,NA(),IF(period+2<>COLUMN(予算!C$8),NA(),予算!C$8)) ->  | D29: =IF(予算!D$8>=0,NA(),IF(period+2<>COLUMN(予算!D$8),NA(),予算!D$8)) ->  | E29: =IF(予算!E$8>=0,NA(),IF(period+2<>COLUMN(予算!E$8),NA(),予算!E$8)) -> -193,300 | F29: =IF(予算!F$8>=0,NA(),IF(period+2<>COLUMN(予算!F$8),NA(),予算!F$8)) ->  | G29: =IF(予算!G$8>=0,NA(),IF(period+2<>COLUMN(予算!G$8),NA(),予算!G$8)) ->  | H29: =IF(予算!H$8>=0,NA(),IF(period+2<>COLUMN(予算!H$8),NA(),予算!H$8)) ->  | I29: =IF(予算!I$8>=0,NA(),IF(period+2<>COLUMN(予算!I$8),NA(),予算!I$8)) ->  | J29: =IF(予算!J$8>=0,NA(),IF(period+2<>COLUMN(予算!J$8),NA(),予算!J$8)) ->  | K29: =IF(予算!K$8>=0,NA(),IF(period+2<>COLUMN(予算!K$8),NA(),予算!K$8)) ->  | L29: =IF(予算!L$8>=0,NA(),IF(period+2<>COLUMN(予算!L$8),NA(),予算!L$8)) ->  | M29: =IF(予算!M$8>=0,NA(),IF(period+2<>COLUMN(予算!M$8),NA(),予算!M$8)) ->  | N29: =IF(予算!N$8>=0,NA(),IF(period+2<>COLUMN(予算!N$8),NA(),予算!N$8)) ->  | O29: =IF(予算!O$8>=0,NA(),IF(period+2<>COLUMN(予算!O$8),NA(),予算!O$8)) -> 
B34: 正期のキャッシュフロー | C34: =CHOOSE({1,2,3},0,SelectedPeriodCashFlowPositive,(MAX(ABS(SelectedPeriodCashFlowNegative),SelectedPeriodCashFlowPositive))) -> 0
B35: 負の期間のキャッシュフロー | C35: =CHOOSE({1,2,3},0,SelectedPeriodCashFlowNegative,-(MAX(ABS(SelectedPeriodCashFlowNegative),SelectedPeriodCashFlowPositive))) -> 0
B37: =LOWER(display_long_period) -> 3 月
B38: =display_long_period & " 収入" -> 3 月 収入 | C38: =INDEX(予算!$C$6:$P$6,,period) -> ¥400,000
B39: =display_long_period & " 支出: " & TEXT(INDEX(予算!$C$7:$P$7,,period),"$#,##0") -> 3 月 支出: $593,300 | C39: =INDEX(予算!$C$7:$P$7,,period) -> ¥593,300
B40: =display_long_period & " キャッシュ フロー" -> 3 月 キャッシュ フロー | C40: =ABS(INDEX(予算!$C$8:$P$8,,period)) -> ¥193,300 | D40: =REPT("-",INDEX(予算!$C$8:$P$8,,period)<0) -> -
